[Event "Early-Titled-Tuesday-Blitz-January-16-2024"]
[Site "Chess.com"]
[Date "2024.01.16"]
[Round "1"]
[White "lilleper1"]
[Black "FARIZA2018"]
[Result "1-0"]
[WhiteElo "2948"]
[BlackElo "2504"]
[TimeControl "180+1"]
[EndTime "8:08:11 PST"]
[Termination "lilleper1 won on time"]

1. Nf3 {[%clk 0:03:00.9]} 1... Nf6 {[%clk 0:02:59.1]} 2. c4 {[%clk 0:03:00.3]}
2... e6 {[%clk 0:02:58.1]} 3. g3 {[%clk 0:03:00.5]} 3... d5 {[%clk 0:02:58.5]}
4. Bg2 {[%clk 0:03:01.1]} 4... dxc4 {[%clk 0:02:57.6]} 5. Qa4+ {[%clk
0:02:58.5]} 5... Nbd7 {[%clk 0:02:56.8]} 6. Qxc4 {[%clk 0:02:56.9]} 6... a6
{[%clk 0:02:56.7]} 7. Qc2 {[%clk 0:02:55.8]} 7... c5 {[%clk 0:02:55]} 8. a4
{[%clk 0:02:54.7]} 8... b6 {[%clk 0:02:49.1]} 9. O-O {[%clk 0:02:46.2]} 9... Bb7
{[%clk 0:02:48.7]} 10. Nc3 {[%clk 0:02:46.6]} 10... Be7 {[%clk 0:02:46.7]} 11.
e4 {[%clk 0:02:44.7]} 11... O-O {[%clk 0:02:46.1]} 12. Rd1 {[%clk 0:02:43.2]}
12... Rc8 {[%clk 0:02:44.3]} 13. d3 {[%clk 0:02:42.4]} 13... Qc7 {[%clk
0:02:41.6]} 14. Bf4 {[%clk 0:02:38.9]} 14... e5 {[%clk 0:02:41.1]} 15. Be3
{[%clk 0:02:38.7]} 15... Rfd8 {[%clk 0:02:39.7]} 16. Nh4 {[%clk 0:02:33.8]}
16... Nf8 {[%clk 0:02:28.1]} 17. Bh3 {[%clk 0:02:27.7]} 17... Rb8 {[%clk
0:02:23]} 18. Rf1 {[%clk 0:02:17.5]} 18... Bc8 {[%clk 0:02:07.5]} 19. Bxc8
{[%clk 0:02:14]} 19... Rbxc8 {[%clk 0:02:06.9]} 20. f4 {[%clk 0:02:05.9]} 20...
Ne6 {[%clk 0:02:05]} 21. fxe5 {[%clk 0:02:01.6]} 21... Qxe5 {[%clk 0:01:45.8]}
22. Nf5 {[%clk 0:01:56.7]} 22... Nd4 {[%clk 0:01:10.1]} 23. Qg2 {[%clk
0:01:48.2]} 23... Nxf5 {[%clk 0:00:53.6]} 24. Rxf5 {[%clk 0:01:49.1]} 24... Qe6
{[%clk 0:00:53.1]} 25. Rd1 {[%clk 0:01:49.2]} 25... Ng4 {[%clk 0:00:39.9]} 26.
Qe2 {[%clk 0:01:18.4]} 26... Nxe3 {[%clk 0:00:34.5]} 27. Qxe3 {[%clk 0:01:19.3]}
27... Bf6 {[%clk 0:00:33.4]} 28. Kg2 {[%clk 0:01:19]} 28... Bd4 {[%clk
0:00:30.1]} 29. Qe2 {[%clk 0:01:16]} 29... g6 {[%clk 0:00:22.3]} 30. Rff1 {[%clk
0:01:13.3]} 30... Rd7 {[%clk 0:00:18.6]} 31. Qf3 {[%clk 0:01:09.7]} 31... Re8
{[%clk 0:00:18.4]} 32. Nd5 {[%clk 0:01:06.5]} 32... Kg7 {[%clk 0:00:17.2]} 33.
b3 {[%clk 0:01:02.3]} 33... Be5 {[%clk 0:00:14.8]} 34. g4 {[%clk 0:00:56.9]}
34... b5 {[%clk 0:00:13.5]} 35. axb5 {[%clk 0:00:52]} 35... axb5 {[%clk
0:00:12.9]} 36. Rc1 {[%clk 0:00:52.6]} 36... Bd4 {[%clk 0:00:09.2]} 37. h4
{[%clk 0:00:51.9]} 37... Ra8 {[%clk 0:00:08.9]} 38. Rc2 {[%clk 0:00:50.9]} 38...
Rda7 {[%clk 0:00:08.4]} 39. Qe2 {[%clk 0:00:39.3]} 39... Qe5 {[%clk 0:00:06.4]}
40. Qf3 {[%clk 0:00:32.1]} 40... Qe6 {[%clk 0:00:06.1]} 41. Nf4 {[%clk
0:00:31.9]} 41... Qc6 {[%clk 0:00:05.4]} 42. h5 {[%clk 0:00:29.2]} 42... g5
{[%clk 0:00:05]} 43. Nd5 {[%clk 0:00:28.6]} 43... Qe6 {[%clk 0:00:04.1]} 44. Qe2
{[%clk 0:00:28.7]} 44... Qe5 {[%clk 0:00:03.7]} 45. Rf5 {[%clk 0:00:28.8]} 45...
Qe6 {[%clk 0:00:03.8]} 46. Rxg5+ {[%clk 0:00:29]} 46... Kh8 {[%clk 0:00:04.2]}
47. Rf5 {[%clk 0:00:28.5]} 47... Rg8 {[%clk 0:00:03.4]} 48. Qf3 {[%clk
0:00:22.1]} 48... f6 {[%clk 0:00:04.1]} 49. Kh3 {[%clk 0:00:19]} 49... Rf7
{[%clk 0:00:03.9]} 50. Rg2 {[%clk 0:00:18.5]} 50... Qd7 {[%clk 0:00:02.7]} 51.
Kh2 {[%clk 0:00:18.8]} 51... Qe6 {[%clk 0:00:02.7]} 52. g5 {[%clk 0:00:18.7]}
1-0

[Event "Early-Titled-Tuesday-Blitz-January-16-2024"]
[Site "Chess.com"]
[Date "2024.01.16"]
[Round "1"]
[White "rhungaski"]
[Black "evgchess5"]
[Result "1-0"]
[WhiteElo "2529"]
[BlackElo "2967"]
[TimeControl "180+1"]
[EndTime "8:08:12 PST"]
[Termination "rhungaski won on time"]

1. e4 {[%clk 0:02:49.3]} 1... c5 {[%clk 0:02:58.5]} 2. Nf3 {[%clk 0:02:48.4]}
2... e6 {[%clk 0:02:58.3]} 3. d4 {[%clk 0:02:48.1]} 3... cxd4 {[%clk 0:02:58.6]}
4. Nxd4 {[%clk 0:02:48.7]} 4... Nc6 {[%clk 0:02:58.5]} 5. Nb5 {[%clk 0:02:46.4]}
5... d6 {[%clk 0:02:57.6]} 6. c4 {[%clk 0:02:47]} 6... Nf6 {[%clk 0:02:56.3]} 7.
N1c3 {[%clk 0:02:46.2]} 7... a6 {[%clk 0:02:55.9]} 8. Na3 {[%clk 0:02:46]} 8...
Be7 {[%clk 0:02:56.6]} 9. Be2 {[%clk 0:02:46.4]} 9... O-O {[%clk 0:02:56.5]} 10.
O-O {[%clk 0:02:47.1]} 10... b6 {[%clk 0:02:56.6]} 11. Bf4 {[%clk 0:02:46.7]}
11... Bb7 {[%clk 0:02:52.2]} 12. Re1 {[%clk 0:02:46.9]} 12... Ne5 {[%clk
0:02:47.1]} 13. Bf1 {[%clk 0:02:46.4]} 13... Qc7 {[%clk 0:02:40.7]} 14. Rc1
{[%clk 0:02:44.9]} 14... Rac8 {[%clk 0:02:40.3]} 15. h3 {[%clk 0:02:44.9]} 15...
Rfd8 {[%clk 0:02:38.7]} 16. Qd2 {[%clk 0:02:43.1]} 16... h6 {[%clk 0:02:29.4]}
17. Qe3 {[%clk 0:02:43]} 17... Bf8 {[%clk 0:02:14.2]} 18. Kh1 {[%clk 0:02:43.1]}
18... Ba8 {[%clk 0:01:47.7]} 19. Bh2 {[%clk 0:02:43]} 19... Qc5 {[%clk
0:01:42.1]} 20. f4 {[%clk 0:02:29.3]} 20... Qxe3 {[%clk 0:01:39.2]} 21. Rxe3
{[%clk 0:02:30.2]} 21... Ng6 {[%clk 0:01:32.9]} 22. f5 {[%clk 0:02:11.7]} 22...
Ne5 {[%clk 0:01:31.3]} 23. Rd1 {[%clk 0:02:11.1]} 23... Re8 {[%clk 0:01:22.6]}
24. fxe6 {[%clk 0:02:07.5]} 24... fxe6 {[%clk 0:01:21.6]} 25. Be2 {[%clk
0:01:59.3]} 25... Nf7 {[%clk 0:01:10.8]} 26. Re1 {[%clk 0:01:45.8]} 26... Bb7
{[%clk 0:01:04]} 27. Bd1 {[%clk 0:01:40.4]} 27... Ne5 {[%clk 0:00:54.4]} 28. Be2
{[%clk 0:01:38.9]} 28... Red8 {[%clk 0:00:53]} 29. Bg3 {[%clk 0:01:37.9]} 29...
Be7 {[%clk 0:00:51.1]} 30. Kh2 {[%clk 0:01:34.7]} 30... Ba8 {[%clk 0:00:47.1]}
31. Kh1 {[%clk 0:01:33.1]} 31... Nfd7 {[%clk 0:00:45.4]} 32. Na4 {[%clk
0:01:17.3]} 32... Bc6 {[%clk 0:00:35.7]} 33. Bd1 {[%clk 0:00:52.2]} 33... b5
{[%clk 0:00:33.7]} 34. cxb5 {[%clk 0:00:43.2]} 34... axb5 {[%clk 0:00:34.6]} 35.
Bb3 {[%clk 0:00:34.9]} 35... bxa4 {[%clk 0:00:29.1]} 36. Bxe6+ {[%clk
0:00:35.1]} 36... Kh8 {[%clk 0:00:29]} 37. Rc3 {[%clk 0:00:27.3]} 37... Bb7
{[%clk 0:00:24.6]} 38. Rec1 {[%clk 0:00:22.3]} 38... Rxc3 {[%clk 0:00:19.9]} 39.
Rxc3 {[%clk 0:00:23.2]} 39... Nc6 {[%clk 0:00:15.3]} 40. Nb5 {[%clk 0:00:22.7]}
40... Nc5 {[%clk 0:00:14.6]} 41. Bd5 {[%clk 0:00:22.1]} 41... Na5 {[%clk
0:00:13.2]} 42. Nxd6 {[%clk 0:00:18.7]} 42... Bxd6 {[%clk 0:00:10.7]} 43. Bxd6
{[%clk 0:00:18.1]} 43... Rxd6 {[%clk 0:00:11.1]} 44. Rxc5 {[%clk 0:00:18.9]}
44... Bxd5 {[%clk 0:00:11.1]} 45. exd5 {[%clk 0:00:18.5]} 45... Nb7 {[%clk
0:00:11.1]} 46. Rb5 {[%clk 0:00:19.1]} 46... Nd8 {[%clk 0:00:10.8]} 47. Ra5
{[%clk 0:00:19.4]} 47... Kg8 {[%clk 0:00:09.1]} 48. Kg1 {[%clk 0:00:19.7]} 48...
Kf8 {[%clk 0:00:07.1]} 49. Rxa4 {[%clk 0:00:17.5]} 49... Rxd5 {[%clk 0:00:07]}
50. Rb4 {[%clk 0:00:17.5]} 50... Nc6 {[%clk 0:00:06.2]} 51. Rb7 {[%clk
0:00:17.4]} 51... Rd2 {[%clk 0:00:04.1]} 52. a4 {[%clk 0:00:16.3]} 52... Rd4
{[%clk 0:00:03.4]} 53. Rb6 {[%clk 0:00:15.4]} 53... Ne5 {[%clk 0:00:02.6]} 54.
b4 {[%clk 0:00:11.1]} 54... Nd3 {[%clk 0:00:01.3]} 55. Rb8+ {[%clk 0:00:09.5]}
1-0

[Event "Early-Titled-Tuesday-Blitz-January-16-2024"]
[Site "Chess.com"]
[Date "2024.01.16"]
[Round "1"]
[White "Yurasova_Daria"]
[Black "WhiteKnight2612"]
[Result "0-1"]
[WhiteElo "2463"]
[BlackElo "2860"]
[TimeControl "180+1"]
[EndTime "8:08:13 PST"]
[Termination "WhiteKnight2612 won on time"]

1. d4 {[%clk 0:03:00.9]} 1... Nf6 {[%clk 0:02:58.3]} 2. Bg5 {[%clk 0:02:59.2]}
2... Ne4 {[%clk 0:02:56.3]} 3. Bf4 {[%clk 0:02:59.3]} 3... c5 {[%clk 0:02:57]}
4. f3 {[%clk 0:02:58.5]} 4... Qa5+ {[%clk 0:02:51.4]} 5. c3 {[%clk 0:02:58]}
5... Nf6 {[%clk 0:02:50.8]} 6. d5 {[%clk 0:02:58.3]} 6... e6 {[%clk 0:02:48.1]}
7. e4 {[%clk 0:02:56.5]} 7... b5 {[%clk 0:02:40.3]} 8. Nh3 {[%clk 0:02:42.8]}
8... Bb7 {[%clk 0:02:39.4]} 9. d6 {[%clk 0:02:37.5]} 9... Nc6 {[%clk 0:02:38.7]}
10. Be2 {[%clk 0:02:35.9]} 10... h6 {[%clk 0:02:30.4]} 11. O-O {[%clk
0:02:34.1]} 11... b4 {[%clk 0:02:24.1]} 12. Nd2 {[%clk 0:02:25.2]} 12... g5
{[%clk 0:01:47.9]} 13. Nc4 {[%clk 0:02:19]} 13... Qd8 {[%clk 0:01:48]} 14. Be3
{[%clk 0:02:16.1]} 14... Bg7 {[%clk 0:01:46.9]} 15. Bxc5 {[%clk 0:02:12.6]}
15... bxc3 {[%clk 0:01:47.4]} 16. bxc3 {[%clk 0:02:12.2]} 16... O-O {[%clk
0:01:47.7]} 17. Kh1 {[%clk 0:02:09]} 17... Ba6 {[%clk 0:01:47.8]} 18. Qa4 {[%clk
0:01:56.1]} 18... Qc8 {[%clk 0:01:41.8]} 19. Ba3 {[%clk 0:01:45.9]} 19... Ne5
{[%clk 0:01:15.3]} 20. Nxe5 {[%clk 0:01:35.3]} 20... Bxe2 {[%clk 0:01:15.6]} 21.
Rfe1 {[%clk 0:01:32.6]} 21... Ba6 {[%clk 0:01:16]} 22. c4 {[%clk 0:01:19.9]}
22... Rd8 {[%clk 0:00:58.1]} 23. c5 {[%clk 0:01:19.9]} 23... Ne8 {[%clk
0:00:58.1]} 24. Nc4 {[%clk 0:01:18.8]} 24... Bxa1 {[%clk 0:00:56.4]} 25. Rxa1
{[%clk 0:01:19.7]} 25... Rb8 {[%clk 0:00:55.1]} 26. Nf2 {[%clk 0:01:12.9]} 26...
Bxc4 {[%clk 0:00:51.7]} 27. Qxc4 {[%clk 0:01:10.2]} 27... Nxd6 {[%clk
0:00:52.3]} 28. Qd3 {[%clk 0:01:09.5]} 28... Nb5 {[%clk 0:00:47.7]} 29. Bb2
{[%clk 0:01:09.2]} 29... Qxc5 {[%clk 0:00:48.3]} 30. Ng4 {[%clk 0:01:07.7]}
30... Kf8 {[%clk 0:00:46.7]} 31. Bf6 {[%clk 0:01:02.4]} 31... Rdc8 {[%clk
0:00:43.6]} 32. h4 {[%clk 0:00:56.7]} 32... gxh4 {[%clk 0:00:41]} 33. Qxd7
{[%clk 0:00:55.1]} 33... Rc7 {[%clk 0:00:29.5]} 34. Qd2 {[%clk 0:00:52.9]} 34...
Qh5 {[%clk 0:00:28]} 35. a4 {[%clk 0:00:49.8]} 35... h3 {[%clk 0:00:22]} 36. g3
{[%clk 0:00:48.4]} 36... Rbc8 {[%clk 0:00:15]} 37. axb5 {[%clk 0:00:47.4]} 37...
Qg6 {[%clk 0:00:13.9]} 38. Be5 {[%clk 0:00:41.7]} 38... Rc2 {[%clk 0:00:11.5]}
39. Qd6+ {[%clk 0:00:41.4]} 39... Kg8 {[%clk 0:00:11.8]} 40. Nf6+ {[%clk
0:00:36.2]} 40... Kh8 {[%clk 0:00:12.4]} 41. Rd1 {[%clk 0:00:23.2]} 41... h2
{[%clk 0:00:11.4]} 42. Qd8+ {[%clk 0:00:18.5]} 42... Kg7 {[%clk 0:00:10.4]} 43.
Qe7 {[%clk 0:00:05.6]} 43... Qg5 {[%clk 0:00:05.6]} 44. Ne8+ {[%clk 0:00:03.1]}
44... Kg8 {[%clk 0:00:05.1]} 45. Nf6+ {[%clk 0:00:03.4]} 45... Kg7 {[%clk
0:00:04.5]} 46. Ng4+ {[%clk 0:00:02.7]} 46... Kg6 {[%clk 0:00:04.4]} 47. Qd6
{[%clk 0:00:02.9]} 47... Rc1 {[%clk 0:00:04.7]} 0-1

[Event "Early-Titled-Tuesday-Blitz-January-16-2024"]
[Site "Chess.com"]
[Date "2024.01.16"]
[Round "1"]
[White "Franmu14"]
[Black "Pawnpusher1245"]
[Result "1-0"]
[WhiteElo "2686"]
[BlackElo "2361"]
[TimeControl "180+1"]
[EndTime "8:08:14 PST"]
[Termination "Franmu14 won on time"]

1. e4 {[%clk 0:03:00.9]} 1... g6 {[%clk 0:03:00.1]} 2. Nc3 {[%clk 0:03:01.8]}
2... Bg7 {[%clk 0:03:00.4]} 3. d4 {[%clk 0:03:02.7]} 3... c6 {[%clk 0:03:00.6]}
4. Be3 {[%clk 0:03:03.6]} 4... d5 {[%clk 0:03:01]} 5. Qd2 {[%clk 0:03:01.5]}
5... dxe4 {[%clk 0:02:58.3]} 6. Nxe4 {[%clk 0:03:02.4]} 6... Nd7 {[%clk
0:02:58.5]} 7. O-O-O {[%clk 0:03:02.1]} 7... Ngf6 {[%clk 0:02:58.5]} 8. Nxf6+
{[%clk 0:03:02.3]} 8... Nxf6 {[%clk 0:02:59.4]} 9. Kb1 {[%clk 0:03:02.7]} 9...
O-O {[%clk 0:02:53.6]} 10. Bd3 {[%clk 0:03:02.9]} 10... Ng4 {[%clk 0:02:45.3]}
11. Ne2 {[%clk 0:02:56.3]} 11... Nxe3 {[%clk 0:02:41.6]} 12. Qxe3 {[%clk
0:02:56.6]} 12... Re8 {[%clk 0:02:31.6]} 13. f4 {[%clk 0:02:54.9]} 13... Be6
{[%clk 0:02:27.3]} 14. h3 {[%clk 0:02:50.3]} 14... Rc8 {[%clk 0:02:11.1]} 15. g4
{[%clk 0:02:49.3]} 15... c5 {[%clk 0:02:10.3]} 16. dxc5 {[%clk 0:02:47.4]} 16...
Qa5 {[%clk 0:02:09.5]} 17. Nc1 {[%clk 0:02:46.4]} 17... Qxc5 {[%clk 0:02:07.3]}
18. Qxc5 {[%clk 0:02:45.1]} 18... Rxc5 {[%clk 0:02:08.2]} 19. Nb3 {[%clk
0:02:45]} 19... Rcc8 {[%clk 0:02:06.4]} 20. f5 {[%clk 0:02:43.6]} 20... Bd5
{[%clk 0:01:58.2]} 21. Rhe1 {[%clk 0:02:29]} 21... e6 {[%clk 0:01:56.5]} 22.
fxe6 {[%clk 0:02:19.5]} 22... Bxe6 {[%clk 0:01:52.2]} 23. Be4 {[%clk 0:02:19.1]}
23... b6 {[%clk 0:01:50.5]} 24. c3 {[%clk 0:02:15.2]} 24... Red8 {[%clk
0:01:48.6]} 25. Bb7 {[%clk 0:02:05.6]} 25... Rxd1+ {[%clk 0:01:39.1]} 26. Rxd1
{[%clk 0:02:05.2]} 26... Rb8 {[%clk 0:01:33.1]} 27. Bg2 {[%clk 0:02:04.9]} 27...
Bf6 {[%clk 0:01:30.7]} 28. Nd4 {[%clk 0:02:03.6]} 28... Rd8 {[%clk 0:01:26.4]}
29. b3 {[%clk 0:01:59.8]} 29... h5 {[%clk 0:01:12.6]} 30. gxh5 {[%clk
0:01:59.3]} 30... gxh5 {[%clk 0:01:13.5]} 31. Kc2 {[%clk 0:01:57.1]} 31... Bc8
{[%clk 0:00:55.2]} 32. b4 {[%clk 0:01:42.7]} 32... h4 {[%clk 0:00:53.3]} 33. a4
{[%clk 0:01:42.4]} 33... Re8 {[%clk 0:00:50.6]} 34. Kd3 {[%clk 0:01:34.5]} 34...
Bg5 {[%clk 0:00:22.7]} 35. Be4 {[%clk 0:01:13.6]} 35... Bxh3 {[%clk 0:00:18]}
36. Rg1 {[%clk 0:01:14.1]} 36... f6 {[%clk 0:00:18]} 37. b5 {[%clk 0:01:14.5]}
37... Bd7 {[%clk 0:00:16.5]} 38. Nf3 {[%clk 0:01:02]} 38... Re7 {[%clk 0:00:16]}
39. Nxg5 {[%clk 0:01:01.6]} 39... fxg5 {[%clk 0:00:16.1]} 40. Rxg5+ {[%clk
0:01:02.3]} 40... Rg7 {[%clk 0:00:16.5]} 41. Rh5 {[%clk 0:01:00.9]} 41... h3
{[%clk 0:00:16.7]} 42. Kd4 {[%clk 0:00:59.5]} 42... Kf8 {[%clk 0:00:14.8]} 43.
Ke5 {[%clk 0:00:56.7]} 43... Ke7 {[%clk 0:00:14.9]} 44. c4 {[%clk 0:00:51.8]}
44... Bc8 {[%clk 0:00:14.5]} 45. Rh8 {[%clk 0:00:50.8]} 45... Bd7 {[%clk
0:00:14.5]} 46. Rh5 {[%clk 0:00:50.2]} 46... Bc8 {[%clk 0:00:14.2]} 47. Bc6
{[%clk 0:00:49]} 47... Be6 {[%clk 0:00:13.5]} 48. Rh8 {[%clk 0:00:43.2]} 48...
Bg4 {[%clk 0:00:12.8]} 49. Kd4 {[%clk 0:00:42.1]} 49... Be6 {[%clk 0:00:12.1]}
50. c5 {[%clk 0:00:41.6]} 50... Rg4+ {[%clk 0:00:12]} 51. Ke5 {[%clk 0:00:41.2]}
51... bxc5 {[%clk 0:00:10.3]} 52. Rh7+ {[%clk 0:00:40.5]} 52... Bf7 {[%clk
0:00:10.6]} 53. a5 {[%clk 0:00:32.7]} 53... Rg5+ {[%clk 0:00:09.4]} 54. Kf4
{[%clk 0:00:33]} 54... Rg8 {[%clk 0:00:08.2]} 55. Bd5 {[%clk 0:00:30.3]} 55...
Rf8 {[%clk 0:00:07.9]} 56. Ke5 {[%clk 0:00:28.8]} 56... Ke8 {[%clk 0:00:06.7]}
57. Bc6+ {[%clk 0:00:28.4]} 57... Ke7 {[%clk 0:00:06.7]} 58. Rxh3 {[%clk
0:00:29]} 58... Be6 {[%clk 0:00:06.1]} 59. Rh7+ {[%clk 0:00:29.2]} 59... Rf7
{[%clk 0:00:06.7]} 60. Rxf7+ {[%clk 0:00:20.1]} 60... Bxf7 {[%clk 0:00:07.6]}
61. b6 {[%clk 0:00:20.4]} 61... axb6 {[%clk 0:00:03.3]} 62. a6 {[%clk 0:00:21]}
1-0

[Event "Early-Titled-Tuesday-Blitz-January-16-2024"]
[Site "Chess.com"]
[Date "2024.01.16"]
[Round "1"]
[White "KanalSzachowy"]
[Black "Yeritsyaan"]
[Result "0-1"]
[WhiteElo "2317"]
[BlackElo "2658"]
[TimeControl "180+1"]
[EndTime "8:08:18 PST"]
[Termination "Yeritsyaan won by checkmate"]

1. e4 {[%clk 0:03:00.9]} 1... e6 {[%clk 0:02:58.9]} 2. d4 {[%clk 0:03:00.3]}
2... a6 {[%clk 0:02:58.8]} 3. c4 {[%clk 0:02:55.8]} 3... d5 {[%clk 0:02:52.2]}
4. cxd5 {[%clk 0:02:51.7]} 4... exd5 {[%clk 0:02:52.4]} 5. e5 {[%clk 0:02:37.7]}
5... Bf5 {[%clk 0:02:49.2]} 6. Bd3 {[%clk 0:02:36]} 6... Bb4+ {[%clk 0:02:43.5]}
7. Nc3 {[%clk 0:02:35.4]} 7... Bxd3 {[%clk 0:02:42.5]} 8. Qxd3 {[%clk
0:02:36.3]} 8... Ne7 {[%clk 0:02:41.1]} 9. h4 {[%clk 0:02:32.9]} 9... Nd7 {[%clk
0:02:33.1]} 10. Nf3 {[%clk 0:02:32.2]} 10... c5 {[%clk 0:02:33.2]} 11. a3 {[%clk
0:02:27.2]} 11... cxd4 {[%clk 0:02:23]} 12. axb4 {[%clk 0:02:27]} 12... dxc3
{[%clk 0:02:23.4]} 13. bxc3 {[%clk 0:02:27.9]} 13... Qc7 {[%clk 0:02:14.7]} 14.
O-O {[%clk 0:02:19.6]} 14... O-O {[%clk 0:02:11.8]} 15. Re1 {[%clk 0:02:18]}
15... Rfe8 {[%clk 0:01:57.1]} 16. Ng5 {[%clk 0:02:17.7]} 16... Nf8 {[%clk
0:01:56.8]} 17. e6 {[%clk 0:01:51.5]} 17... fxe6 {[%clk 0:01:53]} 18. Rxe6
{[%clk 0:01:45.2]} 18... h6 {[%clk 0:01:36.3]} 19. Rxe7 {[%clk 0:01:19.6]} 19...
Rxe7 {[%clk 0:01:25.3]} 20. Qxd5+ {[%clk 0:01:18.5]} 20... Kh8 {[%clk
0:01:25.2]} 21. Nf3 {[%clk 0:01:09.3]} 21... Rd8 {[%clk 0:01:25.6]} 22. Qb3
{[%clk 0:01:04.3]} 22... Rd3 {[%clk 0:01:16.8]} 23. Bb2 {[%clk 0:00:58.3]} 23...
Re2 {[%clk 0:01:13.5]} 24. Rf1 {[%clk 0:00:42.5]} 24... Ne6 {[%clk 0:01:09.5]}
25. Ne1 {[%clk 0:00:41.3]} 25... Rd8 {[%clk 0:01:02.4]} 26. Bc1 {[%clk
0:00:39.5]} 26... Nf4 {[%clk 0:01:00.5]} 27. Nf3 {[%clk 0:00:31.5]} 27... Nd3
{[%clk 0:00:42.8]} 28. Be3 {[%clk 0:00:27.7]} 28... Ne5 {[%clk 0:00:42.6]} 29.
Nxe5 {[%clk 0:00:21.9]} 29... Qxe5 {[%clk 0:00:43.5]} 30. Qf7 {[%clk 0:00:22.5]}
30... Qxc3 {[%clk 0:00:35.7]} 31. Qxb7 {[%clk 0:00:12.6]} 31... Re1 {[%clk
0:00:34.8]} 32. Qxa6 {[%clk 0:00:10.7]} 32... Rxf1+ {[%clk 0:00:34.7]} 33. Kxf1
{[%clk 0:00:11.4]} 33... Qxb4 {[%clk 0:00:30.1]} 34. Ke2 {[%clk 0:00:11.4]}
34... Qb2+ {[%clk 0:00:28.7]} 35. Kf3 {[%clk 0:00:11]} 35... Qc2 {[%clk
0:00:27.8]} 36. Qb7 {[%clk 0:00:07.3]} 36... Qd1+ {[%clk 0:00:25.7]} 37. Kg3
{[%clk 0:00:04.2]} 37... Qd6+ {[%clk 0:00:26.2]} 38. Kh3 {[%clk 0:00:04.2]}
38... Qd7+ {[%clk 0:00:26]} 39. Qxd7 {[%clk 0:00:03.8]} 39... Rxd7 {[%clk
0:00:26.9]} 40. g4 {[%clk 0:00:04.3]} 40... Kh7 {[%clk 0:00:24.5]} 41. Kg3
{[%clk 0:00:04.6]} 41... g6 {[%clk 0:00:24]} 42. g5 {[%clk 0:00:05.5]} 42... h5
{[%clk 0:00:23.8]} 43. Kf3 {[%clk 0:00:04.4]} 43... Rd5 {[%clk 0:00:23.9]} 44.
Kg2 {[%clk 0:00:04.8]} 44... Kg8 {[%clk 0:00:23.8]} 45. Kf3 {[%clk 0:00:05.1]}
45... Kf7 {[%clk 0:00:23.5]} 46. Kg3 {[%clk 0:00:05.5]} 46... Ke6 {[%clk
0:00:24.1]} 47. Kf3 {[%clk 0:00:04.9]} 47... Kf5 {[%clk 0:00:24]} 48. Kg3 {[%clk
0:00:05.1]} 48... Rb5 {[%clk 0:00:23.7]} 49. Kf3 {[%clk 0:00:05.4]} 49... Rb4
{[%clk 0:00:23.8]} 50. Kg3 {[%clk 0:00:05.5]} 50... Rb1 {[%clk 0:00:23.4]} 51.
Kf3 {[%clk 0:00:05.4]} 51... Rh1 {[%clk 0:00:22.8]} 52. Kg3 {[%clk 0:00:05.9]}
52... Ke4 {[%clk 0:00:22.9]} 53. Bd2 {[%clk 0:00:04.3]} 53... Rg1+ {[%clk
0:00:21.1]} 54. Kh2 {[%clk 0:00:04.6]} 54... Rg4 {[%clk 0:00:20.3]} 55. f3+
{[%clk 0:00:03.7]} 55... Kxf3 {[%clk 0:00:20.1]} 56. Be1 {[%clk 0:00:04.6]}
56... Rg2+ {[%clk 0:00:20.2]} 57. Kh3 {[%clk 0:00:05.2]} 57... Rg1 {[%clk
0:00:20.2]} 58. Kh2 {[%clk 0:00:03]} 58... Rxe1 {[%clk 0:00:19.9]} 59. Kh3
{[%clk 0:00:03.9]} 59... Rh1# {[%clk 0:00:20.8]} 0-1